Workbook

Sheet DESCRIPTION OF STICKER NUMBER
A1: DESCRIPTION OF STICKER NUMBER
A2: [PL STICKER]
H4: (1) SIGNAL WORD | R4: Example1: ROTATING PARTS
H5: D | K5: There are imminent risks of death or serious injuries to the operators. | R5: Different messages for DANGER and WARNING
H6: W | K6: The operators might result in death or serious injuries. | R6: W-031-EN/0 | W6: D-032-EN/0
H7: C | K7: The operators might result in slight injuries.
H8: Z | I8: Nothing
H10: (2) MESSAGE (TYPES OF RISK)
H11: 1 | I11: ELECTRIC SHOCK HAZARD | K11: 2 | L11: HOT SURFACE | N11: 3 | O11: ROTATING PARTS
R13: Example2: PINCH POINT
R14: Same messages for DANGER and WARNING
H15: 4 | I15: MOVING PARTS | K15: 5 | L15: PINCH POINT | N15: 6 | O15: ENTANGLEMENT HAZARD | R15: W-051-EN/0 | W15: C-051-EN/0
H19: 7 | I19: TOPPLING HAZARD | K19: 8 | L19: SHARP POINTS | N19: 9 | O19: FLYING DEBRIS
H23: 10 | I23: DO NOT OPEN/CLOSE DOOR DURING OPERATION | K23: 11 | L23: DO NOT USE FLAMMABLE MATERIAL | N23: 12 | O23: LIFTING POSITION
H27: 13 | I27: MAGNETIC FIELD ATTENTION | K27: 14 | L27: NO APPROACH OF PACEMAKER WEARERS
H32: (3) MESSAGE (contents and/or how to avoid the risk) Example:ROTATING PARTS
H33: 1 | I33: Can cut fingers or hands. Keep fingers and hands away. Turn off power before maintenance.
H36: 2 | I36: Can cause serious injuries or death. Keep hands and other body parts away. Turn off power before maintenance.
H39: -
H40: 9 | I40: Nothing
H42: (4) LANGUAGE (LANGUAGE CORD ISO639-1)
H43: JA | I43: Japanese
H44: EN | I44: English
H45: ZH | I45: Chinese
H46: ZZ | I46: Nothing
I47: Click here to see other language codes.
A50: [PROCEDURE STICKER]
H52: (1) SERIAL NUMBER | R52: Example1: Trun off power and disconnect supply line before maintenance
H53: A01, A02, A03, ……, A99, B01, B02,…… | R53: N-A01-EN/0
H54: (Serial numbers starting with A01)
H56: (2) LANGUAGE (LANGUAGE CORD ISO639-1)
H57: JA | I57: Japanese
H58: EN | I58: English
H59: ZH | I59: Chinese
H60: ZZ | I60: Nothing
I61: Click here to see other language codes.

Sheet LANGUAGE CORD
A1: LANGUAGE CORD (ISO639-1)
A3: CORD | B3: LANGUAGE
A4: JA | B4: Japanese
A5: EN | B5: English
A6: ZH | B6: Chinese
A7: ZZ | B7: Nothing
A8: AF | B8: Afrikaans
A9: SQ | B9: Albanian
A10: AR | B10: Arabic
A11: BN | B11: Bengali
A12: BS | B12: Bosnian
A13: BG | B13: Bulgarian
A14: MY | B14: Burmese
A15: HR | B15: Croatian
A16: CS | B16: Czech
A17: DA | B17: Danish
A18: NL | B18: Dutch
A19: ET | B19: Estonian
A20: FI | B20: Finnish
A21: FR | B21: French
A22: GD | B22: Gaelic
A23: DE | B23: German
A24: HE | B24: Hebrew
A25: HI | B25: Hindi
A26: HU | B26: Hungarian
A27: IS | B27: Icelandic
A28: ID | B28: Indonesian
A29: IT | B29: Italian
A30: KK | B30: Kazakh
A31: KM | B31: Khmer
A32: KO | B32: Korean
A33: LO | B33: Lao
A34: LV | B34: Latvian
A35: LT | B35: Lithuanian
A36: MK | B36: Macedonian
A37: MS | B37: Malay
A38: MT | B38: Maltese
A39: EL | B39: Modern Greek
A40: MN | B40: Mongolian
A41: NE | B41: Nepali
A42: NO | B42: Norwegian
A43: PS | B43: Pashto
A44: FA | B44: Persian
A45: PL | B45: Polish
A46: PT | B46: Portuguese
A47: RO | B47: Romanian
A48: RU | B48: Russian
A49: SR | B49: Serbian
A50: SK | B50: Slovak
A51: SL | B51: Slovenian
A52: ES | B52: Spanish
A53: SV | B53: Swedish
A54: TL | B54: Tagalog
A55: TH | B55: Thai
A56: TR | B56: Turkish
A57: UK | B57: Ukrainian
A58: UR | B58: Urdu
A59: VI | B59: Vietnamese

Sheet STICKER SIZE
A1: STICKER SIZE
A2: [With message]
A17: [Without message]

Sheet STICKER LIST
A1: STICKER LIST
A3: PL STICKER | B3: NUMBER | C3: DRAWING NUMBER(MJ) | D3: CORD(MJ)
D4: Japanese | E4: English | F4: Chinese
A5: ELECTRIC SHOCK HAZARD | B5: W-011-□□ | C5: F39190 | D5: 29746 | E5: 29765 | F5: 29766
B6: Z-019-ZZ | C6: F39248 | D6: 29767 | E6: ← | F6: ←
A7: HOT SURFACE | B7: W-021-□□ | C7: F39192 | D7: 29768 | E7: 29769 | F7: 29770
B8: Z-029-ZZ | C8: F39249 | D8: 29771 | E8: ← | F8: ←
A9: ROTATING PARTS | B9: W-031-□□ | C9: F39250 | D9: 29772 | E9: 29773 | F9: 29774
B10: D-032-□□ | C10: F39251 | D10: 29775 | E10: 29776 | F10: 29777
B11: Z-039-ZZ | C11: F39252 | D11: 29778 | E11: ← | F11: ←
A12: MOVING PARTS | B12: W-041-□□ | C12: F39253 | D12: 29779 | E12: 29780 | F12: 29781
B13: Z-049-ZZ | C13: F41737 | D13: 30383 | E13: ← | F13: ←
A14: PINCH POINT | B14: W-051-□□ | C14: F39254 | D14: 29782 | E14: 29783 | F14: 29784
B15: C-051-□□ | C15: F39255 | D15: 29785 | E15: 29786 | F15: 29787
A16: ENTANGLEMENT HAZARD | B16: W-061-□□ | C16: F39256 | D16: 29788 | E16: 29789 | F16: 29790
A17: TOPPLING HAZARD | B17: W-071-□□ | C17: F39257 | D17: 29791 | E17: 29792 | F17: 29793
B18: D-072-□□ | C18: F39258 | D18: 29794 | E18: 29795 | F18: 29796
A19: SHARP POINTS | B19: Z-089-ZZ | C19: F39259 | D19: 29797 | E19: ← | F19: ←
A20: FLYING DEBRIS | B20: W-091-□□ | C20: F39260 | D20: 29798 | E20: 29799 | F20: 29800
A21: DO NOT OPEN/CLOSE DOOR DURING OPERATION | B21: W-101-□□ | C21: F39261 | D21: 29801 | E21: 29802 | F21: 29803
A22: DO NOT USE FLAMMABLE MATERIAL | B22: W-111-□□ | C22: F39262 | D22: 29804 | E22: 29805 | F22: 29806
A23: LIFTING POSITION | B23: Z-129-ZZ | C23: F41738 | D23: 30384 | E23: ← | F23: ←
A24: MAGNETIC FIELD ATTENTION | B24: Z-139-ZZ | C24: F41739 | D24: 30385 | E24: ← | F24: ←
A25: NO APPROACH OF PACEMAKER WEARERS | B25: Z-149-ZZ | C25: F41740 | D25: 30386 | E25: ← | F25: ←
A26: PROCEDURE STICKER | B26: NUMBER | C26: DRAWING NUMBER(MJ) | D26: CORD(MJ)
D27: Japanese | E27: English | F27: Chinese
A28: Trun off power and disconnect supply line before maintenance | B28: N-A01-□□ | C28: F39240 | D28: 29745 | E28: 29807 | F28: 29808
A29: If breaker trips, turn breaker OFF, refer to instruction manual to solve problem, then restart operation | B29: N-A02-□□ | C29: F39263 | D29: 29809 | E29: 29810 | F29: 29812
A30: Always keep water supply/drain pipe and media feed/return pipe open during operation. | B30: N-A03-□□ | C30: F39264 | D30: 29813 | E30: 29814 | F30: 29815
A31: Turn on breaker inside control panel 12 hours prior to operation | B31: N-A04-□□ | C31: F39265 | D31: 29816 | E31: 29817 | F31: 29818
A32: Clean filter frequenty | B32: N-A05-□□ | C32: F41735 | D32: 30387 | E32: 30388 | F32: 30389
A33: Remove dust from dust cox frequently | B33: N-A06-□□ | C33: F41736 | D33: 30390 | E33: 30391 | F33: 30392
B34: * In place of the square is the language code.

Sheet COMPARISON TABLE
A1: COMPARISON TABLE OF NEW AND CONVENTIONAL | G1: * Please refer to the notes and revise it.
A3: Select the model you want to refer to and click "JUMP".
A5: MODEL
A6: MJ3
A9: 【HD2】
A11: MODEL | B11: NAME PLATE ATTACHING DRAWING | D11: CONVENTIONAL | N11: NEW | S11: REFERENCE
A12: HD2-10,15 | B12: 757205 | E12: Japanese | H12: English | K12: Chinese | P12: CORD(MJ)
A13: HD2-25,50 | B13: 757206 | D13: NAME | E13: NUMBER | F13: DRAWING NUMBER(MJ) | G13: CORD(MJ) | H13: NUMBER | I13: DRAWING NUMBER(MJ) | J13: CORD(MJ) | K13: NUMBER | L13: DRAWING NUMBER(MJ) | M13: CORD(MJ) | N13: NUMBER | O13: DRAWING NUMBER(MJ) | P13: Japanese | Q13: English | R13: Chinese
A14: HD2-75,100 | B14: A52481 | D14: ELECTRIC SHOCK HAZARD | E14: 3-32 | F14: 731305/1 | G14: 14592 | H14: ← | K14: ← | N14: Z-019-ZZ | O14: =VLOOKUP(N14,'STICKER LIST'!$B$5:$F$33,2,FALSE) -> F39248 | P14: =VLOOKUP(N14,'STICKER LIST'!$B$5:$F$33,3,FALSE) -> 29767 | Q14: =VLOOKUP(N14,'STICKER LIST'!$B$5:$F$33,4,FALSE) -> ← | R14: =VLOOKUP(N14,'STICKER LIST'!$B$5:$F$33,5,FALSE) -> ←
A15: HD2-150,200 | B15: 757207 | D15: HOT SURFACE | E15: 5-11 | F15: 736246/1 | G15: 14577 | H15: 5-61 | I15: 737033/1 | J15: 14599 | K15: 5-111 | L15: 748586 | M15: 15079 | N15: W-021-□□ | O15: =VLOOKUP(N15,'STICKER LIST'!$B$5:$F$33,2,FALSE) -> F39192 | P15: =VLOOKUP(N15,'STICKER LIST'!$B$5:$F$33,3,FALSE) -> 29768 | Q15: =VLOOKUP(N15,'STICKER LIST'!$B$5:$F$33,4,FALSE) -> 29769 | R15: =VLOOKUP(N15,'STICKER LIST'!$B$5:$F$33,5,FALSE) -> 29770
A16: HD2-250,300 | B16: 757208 | D16: HOT SURFACE | E16: 5-31-2 | F16: 736247/3 | G16: 14583 | H16: 5-81 | I16: 737038/2 | J16: 14604 | K16: 5-131 | L16: 748590 | M16: 15088 | N16: Z-029-ZZ | O16: =VLOOKUP(N16,'STICKER LIST'!$B$5:$F$33,2,FALSE) -> F39249 | P16: =VLOOKUP(N16,'STICKER LIST'!$B$5:$F$33,3,FALSE) -> 29771 | Q16: =VLOOKUP(N16,'STICKER LIST'!$B$5:$F$33,4,FALSE) -> ← | R16: =VLOOKUP(N16,'STICKER LIST'!$B$5:$F$33,5,FALSE) -> ←
A17: HD2-400-1100 | B17: 182118 | D17: HOT SURFACE | E17: 5-32-1 | F17: 736248/2 | G17: 14584 | H17: 5-82 | I17: 737039/2 | J17: 14605 | K17: 5-132 | L17: 748591 | M17: 15089 | N17: Z-029-ZZ | O17: =VLOOKUP(N17,'STICKER LIST'!$B$5:$F$33,2,FALSE) -> F39249 | P17: =VLOOKUP(N17,'STICKER LIST'!$B$5:$F$33,3,FALSE) -> 29771 | Q17: =VLOOKUP(N17,'STICKER LIST'!$B$5:$F$33,4,FALSE) -> ← | R17: =VLOOKUP(N17,'STICKER LIST'!$B$5:$F$33,5,FALSE) -> ←
D18: DRYING EQUIPMENT | E18: 5-25 | F18: 736245/1 | G18: 14581 | H18: - | I18: - | J18: - | K18: - | L18: - | M18: - | N18: DELETE | S18: Used for more than 150 in Japan. Write details in the instruction manual.
A21: 【HD】
A23: MODEL | B23: NAME PLATE ATTACHING DRAWING | D23: CONVENTIONAL | N23: NEW | S23: REFERENCE
A24: HD-10,15 | B24: A54090 | E24: Japanese | H24: English | K24: Chinese | P24: CORD(MJ)
A25: HD-25,50 | B25: A54091 | D25: NAME | E25: NUMBER | F25: DRAWING NUMBER(MJ) | G25: CORD(MJ) | H25: NUMBER | I25: DRAWING NUMBER(MJ) | J25: CORD(MJ) | K25: NUMBER | L25: DRAWING NUMBER(MJ) | M25: CORD(MJ) | N25: NUMBER | O25: DRAWING NUMBER(MJ) | P25: Japanese | Q25: English | R25: Chinese
A26: HD-75,100 | B26: A54092 | D26: ELECTRIC SHOCK HAZARD | E26: 3-32 | F26: 731305/1 | G26: 14592 | H26: ← | K26: ← | N26: Z-019-ZZ | O26: =VLOOKUP(N26,'STICKER LIST'!$B$5:$F$33,2,FALSE) -> F39248 | P26: =VLOOKUP(N26,'STICKER LIST'!$B$5:$F$33,3,FALSE) -> 29767 | Q26: =VLOOKUP(N26,'STICKER LIST'!$B$5:$F$33,4,FALSE) -> ← | R26: =VLOOKUP(N26,'STICKER LIST'!$B$5:$F$33,5,FALSE) -> ←
A27: HD-150,200 | B27: A54093 | D27: HOT SURFACE | E27: 5-11 | F27: 736246/1 | G27: 14577 | H27: 5-61 | I27: 737033/1 | J27: 14599 | K27: 5-111 | L27: 748586 | M27: 15079 | N27: W-021-□□ | O27: =VLOOKUP(N27,'STICKER LIST'!$B$5:$F$33,2,FALSE) -> F39192 | P27: =VLOOKUP(N27,'STICKER LIST'!$B$5:$F$33,3,FALSE) -> 29768 | Q27: =VLOOKUP(N27,'STICKER LIST'!$B$5:$F$33,4,FALSE) -> 29769 | R27: =VLOOKUP(N27,'STICKER LIST'!$B$5:$F$33,5,FALSE) -> 29770
A28: HD-250,300 | B28: A54094 | D28: HOT SURFACE | E28: 5-31-2 | F28: 736247/3 | G28: 14583 | H28: 5-81 | I28: 737038/2 | J28: 14604 | K28: 5-131 | L28: 748590 | M28: 15088 | N28: Z-029-ZZ | O28: =VLOOKUP(N28,'STICKER LIST'!$B$5:$F$33,2,FALSE) -> F39249 | P28: =VLOOKUP(N28,'STICKER LIST'!$B$5:$F$33,3,FALSE) -> 29771 | Q28: =VLOOKUP(N28,'STICKER LIST'!$B$5:$F$33,4,FALSE) -> ← | R28: =VLOOKUP(N28,'STICKER LIST'!$B$5:$F$33,5,FALSE) -> ←
A29: HD-400-1100 | B29: A54095 | D29: DRYING EQUIPMENT | E29: 5-25 | F29: 736245/1 | G29: 14581 | H29: - | I29: - | J29: - | K29: - | L29: - | M29: - | N29: DELETE | S29: Used for more than 150 in Japan. Write details in the instruction manual.
A32: 【PMD】
A34: MODEL | B34: 全体図 | D34: CONVENTIONAL | N34: NEW | S34: REFERENCE
A35: - | B35: 176713 | E35: Japanese | H35: English | K35: Chinese | P35: CORD(MJ)
D36: NAME | E36: NUMBER | F36: DRAWING NUMBER(MJ) | G36: CORD(MJ) | H36: NUMBER | I36: DRAWING NUMBER(MJ) | J36: CORD(MJ) | K36: NUMBER | L36: DRAWING NUMBER(MJ) | M36: CORD(MJ) | N36: NUMBER | O36: DRAWING NUMBER(MJ) | P36: Japanese | Q36: English | R36: Chinese
D37: ELECTRIC SHOCK HAZARD | E37: 5-18-1 | F37: 736902/1 | G37: 22128 | H37: 5-68 | I37: 738372/1 | J37: 14611 | K37: 5-118 | L37: 748599/1 | M37: 15083 | N37: Z-019-ZZ | O37: =VLOOKUP(N37,'STICKER LIST'!$B$5:$F$33,2,FALSE) -> F39248 | P37: =VLOOKUP(N37,'STICKER LIST'!$B$5:$F$33,3,FALSE) -> 29767 | Q37: =VLOOKUP(N37,'STICKER LIST'!$B$5:$F$33,4,FALSE) -> ← | R37: =VLOOKUP(N37,'STICKER LIST'!$B$5:$F$33,5,FALSE) -> ← | S37: Described in the control panel drawing.
D38: HOT SURFACE | E38: 5-11 | F38: 736246/1 | G38: 14577 | H38: 5-61 | I38: 737033/1 | J38: 14599 | K38: 5-111 | L38: 748586 | M38: 15079 | N38: W-021-□□ | O38: =VLOOKUP(N38,'STICKER LIST'!$B$5:$F$33,2,FALSE) -> F39192 | P38: =VLOOKUP(N38,'STICKER LIST'!$B$5:$F$33,3,FALSE) -> 29768 | Q38: =VLOOKUP(N38,'STICKER LIST'!$B$5:$F$33,4,FALSE) -> 29769 | R38: =VLOOKUP(N38,'STICKER LIST'!$B$5:$F$33,5,FALSE) -> 29770
D39: HOT SURFACE | E39: 5-32-1 | F39: 736248/2 | G39: 14584 | H39: 5-82 | I39: 737039/2 | J39: 14605 | K39: 5-132 | L39: 748591 | M39: 15089 | N39: Z-029-ZZ | O39: =VLOOKUP(N39,'STICKER LIST'!$B$5:$F$33,2,FALSE) -> F39249 | P39: =VLOOKUP(N39,'STICKER LIST'!$B$5:$F$33,3,FALSE) -> 29771 | Q39: =VLOOKUP(N39,'STICKER LIST'!$B$5:$F$33,4,FALSE) -> ← | R39: =VLOOKUP(N39,'STICKER LIST'!$B$5:$F$33,5,FALSE) -> ←
A42: 【MGD】
A44: MODEL | B44: NAME PLATE ATTACHING DRAWING | D44: CONVENTIONAL | N44: NEW | S44: REFERENCE
A45: - | B45: F27784 | E45: Japanese | H45: English | K45: Chinese | P45: CORD(MJ)
D46: NAME | E46: NUMBER | F46: DRAWING NUMBER(MJ) | G46: CORD(MJ) | H46: NUMBER | I46: DRAWING NUMBER(MJ) | J46: CORD(MJ) | K46: NUMBER | L46: DRAWING NUMBER(MJ) | M46: CORD(MJ) | N46: NUMBER | O46: DRAWING NUMBER(MJ) | P46: Japanese | Q46: English | R46: Chinese
D47: ELECTRIC SHOCK HAZARD | E47: 3-31 | F47: 731305/1 | G47: 14591 | H47: ← | K47: ← | N47: Z-019-ZZ | O47: =VLOOKUP(N47,'STICKER LIST'!$B$5:$F$33,2,FALSE) -> F39248 | P47: =VLOOKUP(N47,'STICKER LIST'!$B$5:$F$33,3,FALSE) -> 29767 | Q47: =VLOOKUP(N47,'STICKER LIST'!$B$5:$F$33,4,FALSE) -> ← | R47: =VLOOKUP(N47,'STICKER LIST'!$B$5:$F$33,5,FALSE) -> ← | S47: Use for SE
D48: ELECTRIC SHOCK HAZARD | E48: 3-32 | F48: 731305/1 | G48: 14592 | H48: ← | K48: ← | N48: Z-019-ZZ | O48: =VLOOKUP(N48,'STICKER LIST'!$B$5:$F$33,2,FALSE) -> F39248 | P48: =VLOOKUP(N48,'STICKER LIST'!$B$5:$F$33,3,FALSE) -> 29767 | Q48: =VLOOKUP(N48,'STICKER LIST'!$B$5:$F$33,4,FALSE) -> ← | R48: =VLOOKUP(N48,'STICKER LIST'!$B$5:$F$33,5,FALSE) -> ←
D49: HOT SURFACE | E49: 5-11 | F49: 736246/1 | G49: 14577 | H49: 5-61 | I49: 737033/1 | J49: 14599 | K49: 5-111 | L49: 748586 | M49: 15079 | N49: W-021-□□ | O49: =VLOOKUP(N49,'STICKER LIST'!$B$5:$F$33,2,FALSE) -> F39192 | P49: =VLOOKUP(N49,'STICKER LIST'!$B$5:$F$33,3,FALSE) -> 29768 | Q49: =VLOOKUP(N49,'STICKER LIST'!$B$5:$F$33,4,FALSE) -> 29769 | R49: =VLOOKUP(N49,'STICKER LIST'!$B$5:$F$33,5,FALSE) -> 29770
D50: HOT SURFACE | E50: 5-32-1 | F50: 736248/2 | G50: 14584 | H50: 5-82 | I50: 737039/2 | J50: 14605 | K50: 5-132 | L50: 748591 | M50: 15089 | N50: Z-029-ZZ | O50: =VLOOKUP(N50,'STICKER LIST'!$B$5:$F$33,2,FALSE) -> F39249 | P50: =VLOOKUP(N50,'STICKER LIST'!$B$5:$F$33,3,FALSE) -> 29771 | Q50: =VLOOKUP(N50,'STICKER LIST'!$B$5:$F$33,4,FALSE) -> ← | R50: =VLOOKUP(N50,'STICKER LIST'!$B$5:$F$33,5,FALSE) -> ←
D51: DON'T MOVE | E51: 4-15 | F51: A81770 | G51: 23560 | H51: 4-65 | I51: A81771 | J51: 23561 | K51: 4-115 | L51: A81772 | M51: 23562 | N51: D-072-□□ | O51: =VLOOKUP(N51,'STICKER LIST'!$B$5:$F$33,2,FALSE) -> F39258 | P51: =VLOOKUP(N51,'STICKER LIST'!$B$5:$F$33,3,FALSE) -> 29794 | Q51: =VLOOKUP(N51,'STICKER LIST'!$B$5:$F$33,4,FALSE) -> 29795 | R51: =VLOOKUP(N51,'STICKER LIST'!$B$5:$F$33,5,FALSE) -> 29796 | S51: Write in the instruction manual that movement is strictly prohibited.
D52: DRYING EQUIPMENT | E52: 5-25 | F52: 736245/1 | G52: 14581 | H52: - | I52: - | J52: - | K52: - | L52: - | M52: - | N52: DELETE | S52: Use for Japan. Write details in the instruction manual.
D53: HANDLING PRECAUTIONS | E53: 6-15-2 | F53: 731297/3 | G53: 14586 | H53: 6-65-1 | I53: 737041/3 | J53: 14607 | K53: 6-115 | L53: 748593/1 | M53: 15091 | N53: DELETE
D54: CAUTION Nameplate (MAINTENANCE, CAUTION) | E54: - | F54: 190597① | G54: - | H54: - | I54: 725455 | J54: - | K54: - | L54: - | M54: - | N54: N-A06-□□ | O54: =VLOOKUP(N54,'STICKER LIST'!$B$5:$F$33,2,FALSE) -> F41736 | P54: =VLOOKUP(N54,'STICKER LIST'!$B$5:$F$33,3,FALSE) -> 30390 | Q54: =VLOOKUP(N54,'STICKER LIST'!$B$5:$F$33,4,FALSE) -> 30391 | R54: =VLOOKUP(N54,'STICKER LIST'!$B$5:$F$33,5,FALSE) -> 30392 | S54: Dust box maintenance
D55: CAUTION Nameplate (MAINTENANCE) | E55: - | F55: 190597② | G55: - | H55: - | I55: 190598 | J55: - | K55: - | L55: - | M55: - | N55: N-A05-□□ | O55: =VLOOKUP(N55,'STICKER LIST'!$B$5:$F$33,2,FALSE) -> F41735 | P55: =VLOOKUP(N55,'STICKER LIST'!$B$5:$F$33,3,FALSE) -> 30387 | Q55: =VLOOKUP(N55,'STICKER LIST'!$B$5:$F$33,4,FALSE) -> 30388 | R55: =VLOOKUP(N55,'STICKER LIST'!$B$5:$F$33,5,FALSE) -> 30389 | S55: Filter maintenance
A58: 【MJ3】
A60: MODEL | B60: NAME PLATE ATTACHING DRAWING | D60: CONVENTIONAL | N60: NEW | S60: REFERENCE
A61: 10-150 | B61: F27079 | E61: Japanese | H61: English | K61: Chinese | P61: CORD(MJ)
A62: 200-300 | B62: F27080 | D62: NAME | E62: NUMBER | F62: DRAWING NUMBER(MJ) | G62: CORD(MJ) | H62: NUMBER | I62: DRAWING NUMBER(MJ) | J62: CORD(MJ) | K62: NUMBER | L62: DRAWING NUMBER(MJ) | M62: CORD(MJ) | N62: NUMBER | O62: DRAWING NUMBER(MJ) | P62: Japanese | Q62: English | R62: Chinese
D63: ELECTRIC SHOCK HAZARD | E63: 3-31 | F63: 731305/1 | G63: 14591 | H63: ← | K63: ← | N63: Z-019-ZZ | O63: =VLOOKUP(N63,'STICKER LIST'!$B$5:$F$33,2,FALSE) -> F39248 | P63: =VLOOKUP(N63,'STICKER LIST'!$B$5:$F$33,3,FALSE) -> 29767 | Q63: =VLOOKUP(N63,'STICKER LIST'!$B$5:$F$33,4,FALSE) -> ← | R63: =VLOOKUP(N63,'STICKER LIST'!$B$5:$F$33,5,FALSE) -> ← | S63: Use for SE
D64: ELECTRIC SHOCK HAZARD | E64: 3-32 | F64: 731305/1 | G64: 14592 | H64: ← | K64: ← | N64: Z-019-ZZ | O64: =VLOOKUP(N64,'STICKER LIST'!$B$5:$F$33,2,FALSE) -> F39248 | P64: =VLOOKUP(N64,'STICKER LIST'!$B$5:$F$33,3,FALSE) -> 29767 | Q64: =VLOOKUP(N64,'STICKER LIST'!$B$5:$F$33,4,FALSE) -> ← | R64: =VLOOKUP(N64,'STICKER LIST'!$B$5:$F$33,5,FALSE) -> ←
D65: HOT SURFACE | E65: 5-11 | F65: 736246/1 | G65: 14577 | H65: 5-61 | I65: 737033/1 | J65: 14599 | K65: 5-111 | L65: 748586 | M65: 15079 | N65: W-021-□□ | O65: =VLOOKUP(N65,'STICKER LIST'!$B$5:$F$33,2,FALSE) -> F39192 | P65: =VLOOKUP(N65,'STICKER LIST'!$B$5:$F$33,3,FALSE) -> 29768 | Q65: =VLOOKUP(N65,'STICKER LIST'!$B$5:$F$33,4,FALSE) -> 29769 | R65: =VLOOKUP(N65,'STICKER LIST'!$B$5:$F$33,5,FALSE) -> 29770
D66: HOT SURFACE | E66: 5-31-2 | F66: 736247/3 | G66: 14583 | H66: 5-81 | I66: 737038/2 | J66: 14604 | K66: 5-131 | L66: 748590 | M66: 15088 | N66: W-021-□□ | O66: =VLOOKUP(N66,'STICKER LIST'!$B$5:$F$33,2,FALSE) -> F39192 | P66: =VLOOKUP(N66,'STICKER LIST'!$B$5:$F$33,3,FALSE) -> 29768 | Q66: =VLOOKUP(N66,'STICKER LIST'!$B$5:$F$33,4,FALSE) -> 29769 | R66: =VLOOKUP(N66,'STICKER LIST'!$B$5:$F$33,5,FALSE) -> 29770 | S66: Used for less than 150
D67: DON'T MOVE | E67: 4-15 | F67: A81770 | G67: 23560 | H67: 4-65 | I67: A81771 | J67: 23561 | K67: 4-115 | L67: A81772 | M67: 23562 | N67: D-072-□□ | O67: =VLOOKUP(N67,'STICKER LIST'!$B$5:$F$33,2,FALSE) -> F39258 | P67: =VLOOKUP(N67,'STICKER LIST'!$B$5:$F$33,3,FALSE) -> 29794 | Q67: =VLOOKUP(N67,'STICKER LIST'!$B$5:$F$33,4,FALSE) -> 29795 | R67: =VLOOKUP(N67,'STICKER LIST'!$B$5:$F$33,5,FALSE) -> 29796 | S67: Write in the instruction manual that movement is strictly prohibited.
D68: DRYING EQUIPMENT | E68: 5-25 | F68: 736245/1 | G68: 14581 | H68: - | I68: - | J68: - | K68: - | L68: - | M68: - | N68: DELETE | S68: Used for more than 200 in Japan. Write details in the instruction manual.
D69: HANDLING PRECAUTIONS | E69: 6-15-2 | F69: 731297/3 | G69: 14586 | H69: 6-65-1 | I69: 737041/3 | J69: 14607 | K69: 6-115 | L69: 748593/1 | M69: 15091 | N69: DELETE
D70: PRECAUTIONS WHEN DRIVING | E70: 6-28 | F70: A00068 | G70: 21998 | H70: 6-78 | I70: A06465 | J70: 21999 | K70: - | L70: - | M70: - | N70: DELETE | S70: Write details in the instruction manual.
D71: FILTER MAINTENANCE | E71: - | F71: - | G71: 20466 | H71: - | I71: - | J71: - | K71: - | L71: - | M71: - | N71: N-A05-□□ | O71: =VLOOKUP(N71,'STICKER LIST'!$B$5:$F$33,2,FALSE) -> F41735 | P71: =VLOOKUP(N71,'STICKER LIST'!$B$5:$F$33,3,FALSE) -> 30387 | Q71: =VLOOKUP(N71,'STICKER LIST'!$B$5:$F$33,4,FALSE) -> 30388 | R71: =VLOOKUP(N71,'STICKER LIST'!$B$5:$F$33,5,FALSE) -> 30389 | S71: There is no description of cord (MJ) in the drawing.
D72: DUST BOX MAINTENANCE | E72: - | F72: - | G72: - | H72: - | I72: - | J72: - | K72: - | L72: - | M72: - | N72: N-A06-□□ | O72: F41736 | P72: 30390 | Q72: 30391 | R72: 30392 | S72: Used for Cyclone(new)
A75: 【MJ5-i】
A77: MODEL | B77: NAME PLATE ATTACHING DRAWING | D77: CONVENTIONAL | N77: NEW | S77: REFERENCE
A78: 150-650 | B78: B23384 | E78: Japanese | H78: English | K78: Chinese | P78: CORD(MJ)
A79: 1500 | B79: B71453 | D79: NAME | E79: NUMBER | F79: DRAWING NUMBER(MJ) | G79: CORD(MJ) | H79: NUMBER | I79: DRAWING NUMBER(MJ) | J79: CORD(MJ) | K79: NUMBER | L79: DRAWING NUMBER(MJ) | M79: CORD(MJ) | N79: NUMBER | O79: DRAWING NUMBER(MJ) | P79: Japanese | Q79: English | R79: Chinese
D80: ELECTRIC SHOCK HAZARD | E80: 5-17-1 | F80: 736903/1 | G80: 14596 | H80: 5-67 | I80: 738371 | J80: 14610 | K80: 5-117 | L80: 748598 | M80: 15082 | N80: Z-019-ZZ | O80: =VLOOKUP(N80,'STICKER LIST'!$B$5:$F$33,2,FALSE) -> F39248 | P80: =VLOOKUP(N80,'STICKER LIST'!$B$5:$F$33,3,FALSE) -> 29767 | Q80: =VLOOKUP(N80,'STICKER LIST'!$B$5:$F$33,4,FALSE) -> ← | R80: =VLOOKUP(N80,'STICKER LIST'!$B$5:$F$33,5,FALSE) -> ←
D81: HOT SURFACE | E81: 5-11 | F81: 736246/1 | G81: 14577 | H81: 5-61 | I81: 737033/1 | J81: 14599 | K81: 5-111 | L81: 748586 | M81: 15079 | N81: W-021-□□ | O81: =VLOOKUP(N81,'STICKER LIST'!$B$5:$F$33,2,FALSE) -> F39192 | P81: =VLOOKUP(N81,'STICKER LIST'!$B$5:$F$33,3,FALSE) -> 29768 | Q81: =VLOOKUP(N81,'STICKER LIST'!$B$5:$F$33,4,FALSE) -> 29769 | R81: =VLOOKUP(N81,'STICKER LIST'!$B$5:$F$33,5,FALSE) -> 29770
D82: HOT SURFACE | E82: 5-32-1 | F82: 736248/2 | G82: 14584 | H82: 5-82 | I82: 737039/2 | J82: 14605 | K82: 5-132 | L82: 748591 | M82: 15089 | N82: Z-029-ZZ | O82: =VLOOKUP(N82,'STICKER LIST'!$B$5:$F$33,2,FALSE) -> F39249 | P82: =VLOOKUP(N82,'STICKER LIST'!$B$5:$F$33,3,FALSE) -> 29771 | Q82: =VLOOKUP(N82,'STICKER LIST'!$B$5:$F$33,4,FALSE) -> ← | R82: =VLOOKUP(N82,'STICKER LIST'!$B$5:$F$33,5,FALSE) -> ←
D83: DON'T MOVE | E83: 4-15 | F83: A81770 | G83: 23560 | H83: 4-65 | I83: A81771 | J83: 23561 | K83: 4-115 | L83: A81772 | M83: 23562 | N83: D-072-□□ | O83: =VLOOKUP(N83,'STICKER LIST'!$B$5:$F$33,2,FALSE) -> F39258 | P83: =VLOOKUP(N83,'STICKER LIST'!$B$5:$F$33,3,FALSE) -> 29794 | Q83: =VLOOKUP(N83,'STICKER LIST'!$B$5:$F$33,4,FALSE) -> 29795 | R83: =VLOOKUP(N83,'STICKER LIST'!$B$5:$F$33,5,FALSE) -> 29796 | S83: Write in the instruction manual that movement is strictly prohibited.
D84: DOOR OPEN AND CLOSE ATTENTION | E84: 5-501 | F84: D35716 | G84: 28676 | H84: 5-551 | I84: D35718 | J84: 28678 | K84: 5-601 | L84: D35717 | M84: 28677 | N84: W-101-□□ | O84: =VLOOKUP(N84,'STICKER LIST'!$B$5:$F$33,2,FALSE) -> F39261 | P84: =VLOOKUP(N84,'STICKER LIST'!$B$5:$F$33,3,FALSE) -> 29801 | Q84: =VLOOKUP(N84,'STICKER LIST'!$B$5:$F$33,4,FALSE) -> 29802 | R84: =VLOOKUP(N84,'STICKER LIST'!$B$5:$F$33,5,FALSE) -> 29803 | S84: Write details in the instruction manual.
D85: DRYING EQUIPMENT | E85: 5-25 | F85: 736245/1 | G85: 14581 | H85: - | I85: - | J85: - | K85: - | L85: - | M85: - | N85: DELETE | S85: Used for more than 1500 in Japan. Write details in the instruction manual.
D86: HANDLING PRECAUTIONS | E86: 6-15-2 | F86: 731297/3 | G86: 14586 | H86: 6-65-1 | I86: 737041/3 | J86: 14607 | K86: 6-115 | L86: 748593/1 | M86: 15091 | N86: DELETE
D87: CAUTION Nameplate (MAINTENANCE, CAUTION) | E87: - | F87: 190597① | G87: - | H87: - | I87: 725455 | K87: - | L87: - | M87: - | N87: N-A06-□□ | O87: =VLOOKUP(N87,'STICKER LIST'!$B$5:$F$33,2,FALSE) -> F41736 | P87: =VLOOKUP(N87,'STICKER LIST'!$B$5:$F$33,3,FALSE) -> 30390 | Q87: =VLOOKUP(N87,'STICKER LIST'!$B$5:$F$33,4,FALSE) -> 30391 | R87: =VLOOKUP(N87,'STICKER LIST'!$B$5:$F$33,5,FALSE) -> 30392 | S87: Dust box maintenance
D88: FILTER MAINTENANCE | E88: - | F88: B27634 | G88: - | H88: - | I88: - | J88: - | K88: - | L88: - | M88: - | N88: N-A05-□□ | O88: =VLOOKUP(N88,'STICKER LIST'!$B$5:$F$33,2,FALSE) -> F41735 | P88: =VLOOKUP(N88,'STICKER LIST'!$B$5:$F$33,3,FALSE) -> 30387 | Q88: =VLOOKUP(N88,'STICKER LIST'!$B$5:$F$33,4,FALSE) -> 30388 | R88: =VLOOKUP(N88,'STICKER LIST'!$B$5:$F$33,5,FALSE) -> 30389
A91: 【NTD】
A93: 機種 | B93: 銘板貼付指示図 | D93: 旧ステッカー | N93: 新ステッカー | S93: 備考
A94: - | B94: B98084 | E94: 和文 | H94: 英文 | K94: 中文 | P94: コード
D95: 名称 | E95: 管理番号 | F95: 図番 | G95: コード | H95: 管理番号 | I95: 図番 | J95: コード | K95: 管理番号 | L95: 図番 | M95: コード | N95: 管理番号 | O95: 図番 | P95: 和文 | Q95: 英文 | R95: 中文
D96: ELECTRIC SHOCK HAZARD | E96: 5-18-1 | F96: 736902/1 | G96: 22128 | H96: 5-68 | I96: 738372/1 | J96: 14611 | K96: 5-118 | L96: 748599/1 | M96: 15083 | N96: Z-019-ZZ | O96: F39248 | P96: 29767 | Q96: ← | R96: ←
D97: ELECTRIC SHOCK HAZARD | E97: 3-31 | F97: 731305/1 | G97: 14591 | H97: ← | K97: ← | N97: Z-019-ZZ | O97: F39248 | P97: 29767 | Q97: ← | R97: ←
D98: HOT SURFACE | E98: 5-11 | F98: 736246/1 | G98: 14577 | H98: 5-61 | I98: 737033/1 | J98: 14599 | K98: 5-111 | L98: M990138① | M98: - | N98: W-021-□□ | O98: F39192 | P98: 29768 | Q98: 29769 | R98: 29770 | S98: Chinese drawing number is CMC drawing number
D99: HOT SURFACE | E99: 5-31-2 | F99: 736247/3 | G99: 14583 | H99: 5-81 | I99: 737038/2 | J99: 14604 | K99: 5-131 | L99: M990009① | M99: - | N99: Z-029-ZZ | O99: F39249 | P99: 29771 | Q99: ← | R99: ← | S99: Chinese drawing number is CMC drawing number
D100: HOT SURFACE | E100: 5-32-1 | F100: 736248/2 | G100: 14584 | H100: 5-82 | I100: 737039/2 | J100: 14605 | K100: 5-132 | L100: M990137① | M100: - | N100: Z-029-ZZ | O100: F39249 | P100: 29771 | Q100: ← | R100: ← | S100: Chinese drawing number is CMC drawing number
D101: DON'T MOVE | E101: 4-15 | F101: A81770 | G101: 23560 | H101: 4-65 | I101: A81771 | J101: 23561 | K101: 4-115 | L101: CA81772 | M101: - | N101: D-072-□□ | O101: F39258 | P101: 29794 | Q101: 29795 | R101: 29796 | S101: Chinese drawing number is CMC drawing number. Write details in the instruction manual.
D102: HANDLING PRECAUTIONS | E102: 6-15-2 | F102: 731297/3 | G102: 14586 | H102: 6-65 | I102: 737041 | J102: 14607 | K102: 6-115 | L102: M990001① | M102: - | N102: 削除 | S102: Chinese drawing number is CMC drawing number
D103: FILTER MAINTENANCE | E103: - | F103: B27634 | G103: - | H103: - | I103: - | J103: - | K103: - | L103: M990156 | M103: - | N103: N-A05-□□ | O103: F41735 | P103: 30387 | Q103: 30388 | R103: 30389 | S103: Chinese drawing number is CMC drawing number
A106: 【DMZ2】
A108: MODEL | B108: NAME PLATE ATTACHING DRAWING | D108: CONVENTIONAL | N108: NEW | S108: REFERENCE
A109: 40 | B109: F27804 | E109: Japanese | H109: English | K109: Chinese | P109: CORD(MJ)
A110: 80120 | B110: F27805 | D110: NAME | E110: NUMBER | F110: DRAWING NUMBER(MJ) | G110: CORD(MJ) | H110: NUMBER | I110: DRAWING NUMBER(MJ) | J110: CORD(MJ) | K110: NUMBER | L110: DRAWING NUMBER(MJ) | M110: CORD(MJ) | N110: NUMBER | O110: DRAWING NUMBER(MJ) | P110: Japanese | Q110: English | R110: Chinese
A111: 170240 | B111: F27806 | D111: ELECTRIC SHOCK HAZARD | E111: 3-32 | F111: 731305/1 | G111: 14592 | H111: ← | K111: ← | N111: Z-019-ZZ | O111: =VLOOKUP(N111,'STICKER LIST'!$B$5:$F$33,2,FALSE) -> F39248 | P111: =VLOOKUP(N111,'STICKER LIST'!$B$5:$F$33,3,FALSE) -> 29767 | Q111: =VLOOKUP(N111,'STICKER LIST'!$B$5:$F$33,4,FALSE) -> ← | R111: =VLOOKUP(N111,'STICKER LIST'!$B$5:$F$33,5,FALSE) -> ←
A112: 500700 | B112: F27831 | D112: ELECTRIC SHOCK HAZARD | E112: 5-16-1 | F112: 736249/1 | G112: 14578 | H112: 5-66 | I112: 737034 | J112: 14600 | K112: 5-116 | L112: 748601/1 | M112: 15081 | N112: In principle, DELETE | S112: Because it is close to the 3-32 position. But, If it is not close to the 3-32 position, change to Z-019-ZZ.
A113: 900 | B113: F27832 | D113: HOT SURFACE | E113: 5-31-2 | F113: 736247/3 | G113: 14583 | H113: 5-81 | I113: 737038/2 | J113: 14604 | K113: 5-131 | L113: 748590 | M113: 15088 | N113: W-021-□□ | O113: =VLOOKUP(N113,'STICKER LIST'!$B$5:$F$33,2,FALSE) -> F39192 | P113: =VLOOKUP(N113,'STICKER LIST'!$B$5:$F$33,3,FALSE) -> 29768 | Q113: =VLOOKUP(N113,'STICKER LIST'!$B$5:$F$33,4,FALSE) -> 29769 | R113: =VLOOKUP(N113,'STICKER LIST'!$B$5:$F$33,5,FALSE) -> 29770
D114: DRYING EQUIPMENT | E114: 5-25 | F114: 736245/1 | G114: 14581 | H114: - | I114: - | J114: - | K114: - | L114: - | M114: - | N114: DELETE | S114: Used for more than 170 in Japan. Write details in the instruction manual
D115: HANDLING PRECAUTIONS | E115: 6-15-2 | F115: 731297/3 | G115: 14586 | H115: 6-65-1 | I115: 737041/3 | J115: 14607 | K115: 6-115 | L115: 748593/1 | M115: 15091 | N115: DELETE
D116: PRECAUTIONS WHEN DRIVING | E116: 6-28 | F116: A00068 | G116: 21998 | H116: 6-78 | I116: A06465 | J116: 21999 | K116: - | L116: - | M116: - | N116: DELETE | S116: Write details in the instruction manual
D117: FILTER MAINTENANCE | E117: - | F117: - | G117: 20466 | H117: - | I117: - | J117: - | K117: - | L117: - | M117: - | N117: N-A05-□□ | O117: =VLOOKUP(N117,'STICKER LIST'!$B$5:$F$33,2,FALSE) -> F41735 | P117: =VLOOKUP(N117,'STICKER LIST'!$B$5:$F$33,3,FALSE) -> 30387 | Q117: =VLOOKUP(N117,'STICKER LIST'!$B$5:$F$33,4,FALSE) -> 30388 | R117: =VLOOKUP(N117,'STICKER LIST'!$B$5:$F$33,5,FALSE) -> 30389 | S117: There is no description of cord (MJ) in the drawing.
A120: 【DMD4】
A122: MODEL | B122: NAME PLATE ATTACHING DRAWING | D122: CONVENTIONAL | N122: NEW | S122: REFERENCE
A123: 25-200 | B123: F27163 | E123: Japanese | H123: English | K123: Chinese | P123: CORD(MJ)
A124: 300 | B124: F27164 | D124: NAME | E124: NUMBER | F124: DRAWING NUMBER(MJ) | G124: CORD(MJ) | H124: NUMBER | I124: DRAWING NUMBER(MJ) | J124: CORD(MJ) | K124: NUMBER | L124: DRAWING NUMBER(MJ) | M124: CORD(MJ) | N124: NUMBER | O124: DRAWING NUMBER(MJ) | P124: Japanese | Q124: English | R124: Chinese
D125: ELECTRIC SHOCK HAZARD | E125: 3-32 | F125: 731305/1 | G125: 14592 | H125: ← | K125: ← | N125: Z-019-ZZ | O125: =VLOOKUP(N125,'STICKER LIST'!$B$5:$F$33,2,FALSE) -> F39248 | P125: =VLOOKUP(N125,'STICKER LIST'!$B$5:$F$33,3,FALSE) -> 29767 | Q125: =VLOOKUP(N125,'STICKER LIST'!$B$5:$F$33,4,FALSE) -> ← | R125: =VLOOKUP(N125,'STICKER LIST'!$B$5:$F$33,5,FALSE) -> ←
D126: HOT SURFACE | E126: 5-11 | F126: 736246/1 | G126: 14577 | H126: 5-61 | I126: 737033/1 | J126: 14599 | K126: 5-111 | L126: 748586 | M126: 15079 | N126: W-021-□□ | O126: =VLOOKUP(N126,'STICKER LIST'!$B$5:$F$33,2,FALSE) -> F39192 | P126: =VLOOKUP(N126,'STICKER LIST'!$B$5:$F$33,3,FALSE) -> 29768 | Q126: =VLOOKUP(N126,'STICKER LIST'!$B$5:$F$33,4,FALSE) -> 29769 | R126: =VLOOKUP(N126,'STICKER LIST'!$B$5:$F$33,5,FALSE) -> 29770
D127: HOT SURFACE | E127: 5-31-2 | F127: 736247/3 | G127: 14583 | H127: 5-81 | I127: 737038/2 | J127: 14604 | K127: 5-131 | L127: 748590 | M127: 15088 | N127: W-021-□□ | O127: =VLOOKUP(N127,'STICKER LIST'!$B$5:$F$33,2,FALSE) -> F39192 | P127: =VLOOKUP(N127,'STICKER LIST'!$B$5:$F$33,3,FALSE) -> 29768 | Q127: =VLOOKUP(N127,'STICKER LIST'!$B$5:$F$33,4,FALSE) -> 29769 | R127: =VLOOKUP(N127,'STICKER LIST'!$B$5:$F$33,5,FALSE) -> 29770
D128: MOVING PARTS | E128: 6-21-1 | F128: 731303/2 | G128: 14587 | H128: 6-71 | I128: 737042/2 | J128: 14608 | K128: 6-121 | L128: 748594/1 | M128: 15093 | N128: W-041-□□ | O128: =VLOOKUP(N128,'STICKER LIST'!$B$5:$F$33,2,FALSE) -> F39253 | P128: =VLOOKUP(N128,'STICKER LIST'!$B$5:$F$33,3,FALSE) -> 29779 | Q128: =VLOOKUP(N128,'STICKER LIST'!$B$5:$F$33,4,FALSE) -> 29780 | R128: =VLOOKUP(N128,'STICKER LIST'!$B$5:$F$33,5,FALSE) -> 29781
D129: HANDLING PRECAUTIONS | E129: 6-15-2 | F129: 731297/3 | G129: 14586 | H129: 6-65-1 | I129: 737041/3 | J129: 14607 | K129: 6-115 | L129: 748593/1 | M129: 15091 | N129: DELETE
D130: PRECAUTIONS WHEN DRIVING | E130: 6-28 | F130: A00068 | G130: 21998 | H130: 6-78 | I130: A06465 | J130: 21999 | K130: - | L130: F31909 | M130: - | N130: DELETE | S130: Write details in the instruction manual.
D131: FILTER MAINTENANCE | E131: - | F131: - | G131: 20466 | H131: - | I131: - | J131: - | K131: - | L131: F31908 | M131: - | N131: N-A05-□□ | O131: =VLOOKUP(N131,'STICKER LIST'!$B$5:$F$33,2,FALSE) -> F41735 | P131: =VLOOKUP(N131,'STICKER LIST'!$B$5:$F$33,3,FALSE) -> 30387 | Q131: =VLOOKUP(N131,'STICKER LIST'!$B$5:$F$33,4,FALSE) -> 30388 | R131: =VLOOKUP(N131,'STICKER LIST'!$B$5:$F$33,5,FALSE) -> 30389 | S131: There is no description of cord (MJ) in the drawing.
A134: 【DPD3.1】
A136: MODEL | B136: NAME PLATE ATTACHING DRAWING | D136: CONVENTIONAL | N136: NEW | S136: REFERENCE
A137: - | B137: B38378 | E137: Japanese | H137: English | K137: Chinese | P137: CORD(MJ)
D138: NAME | E138: NUMBER | F138: DRAWING NUMBER(MJ) | G138: CORD(MJ) | H138: NUMBER | I138: DRAWING NUMBER(MJ) | J138: CORD(MJ) | K138: NUMBER | L138: DRAWING NUMBER(MJ) | M138: CORD(MJ) | N138: NUMBER | O138: DRAWING NUMBER(MJ) | P138: Japanese | Q138: English | R138: Chinese
D139: ELECTRIC SHOCK HAZARD | E139: 5-18-1 | F139: 736902/1 | G139: 22128 | H139: 5-68 | I139: 738372/1 | J139: 14611 | K139: 5-118 | L139: 748599/1 | M139: 15083 | N139: Z-019-ZZ | O139: =VLOOKUP(N139,'STICKER LIST'!$B$5:$F$33,2,FALSE) -> F39248 | P139: =VLOOKUP(N139,'STICKER LIST'!$B$5:$F$33,3,FALSE) -> 29767 | Q139: =VLOOKUP(N139,'STICKER LIST'!$B$5:$F$33,4,FALSE) -> ← | R139: =VLOOKUP(N139,'STICKER LIST'!$B$5:$F$33,5,FALSE) -> ←
D140: HOT SURFACE | E140: 5-11 | F140: 736246/1 | G140: 14577 | H140: 5-61 | I140: 737033/1 | J140: 14599 | K140: 5-111 | L140: 748586 | M140: 15079 | N140: W-021-□□ | O140: =VLOOKUP(N140,'STICKER LIST'!$B$5:$F$33,2,FALSE) -> F39192 | P140: =VLOOKUP(N140,'STICKER LIST'!$B$5:$F$33,3,FALSE) -> 29768 | Q140: =VLOOKUP(N140,'STICKER LIST'!$B$5:$F$33,4,FALSE) -> 29769 | R140: =VLOOKUP(N140,'STICKER LIST'!$B$5:$F$33,5,FALSE) -> 29770
D141: HOT SURFACE | E141: 5-32-1 | F141: 736248/2 | G141: 14584 | H141: 5-82 | I141: 737039/2 | J141: 14605 | K141: 5-132 | L141: 748591 | M141: 15089 | N141: Z-029-ZZ | O141: =VLOOKUP(N141,'STICKER LIST'!$B$5:$F$33,2,FALSE) -> F39249 | P141: =VLOOKUP(N141,'STICKER LIST'!$B$5:$F$33,3,FALSE) -> 29771 | Q141: =VLOOKUP(N141,'STICKER LIST'!$B$5:$F$33,4,FALSE) -> ← | R141: =VLOOKUP(N141,'STICKER LIST'!$B$5:$F$33,5,FALSE) -> ←
D142: ROTATING PARTS, MOVING PARTS, OPEN/CLOSE PRECAUTIONS | E142: 5-29 | F142: 736244 | G142: 14582 | H142: 5-79 | I142: 737037/1 | J142: 14603 | K142: 5-129 | L142: 748589/1 | M142: 15087 | N142: W-041-□□ | O142: =VLOOKUP(N142,'STICKER LIST'!$B$5:$F$33,2,FALSE) -> F39253 | P142: =VLOOKUP(N142,'STICKER LIST'!$B$5:$F$33,3,FALSE) -> 29779 | Q142: =VLOOKUP(N142,'STICKER LIST'!$B$5:$F$33,4,FALSE) -> 29780 | R142: =VLOOKUP(N142,'STICKER LIST'!$B$5:$F$33,5,FALSE) -> 29781 | S142: Chinese drawing number(MJ) in name plate attaching drawing is Clerical error.
D143: HANDLING PRECAUTIONS | E143: 6-15-2 | F143: 731297/3 | G143: 14586 | H143: 6-65-1 | I143: 737041/3 | J143: 14607 | K143: 6-115 | L143: 748593/1 | M143: 15091 | N143: DELETE
D144: CAUTION Nameplate (MAINTENANCE) | E144: - | F144: 190597 | G144: - | H144: - | I144: 190598 | J144: - | K144: - | L144: A91997 | M144: - | N144: N-A05-□□ | O144: =VLOOKUP(N144,'STICKER LIST'!$B$5:$F$33,2,FALSE) -> F41735 | P144: =VLOOKUP(N144,'STICKER LIST'!$B$5:$F$33,3,FALSE) -> 30387 | Q144: =VLOOKUP(N144,'STICKER LIST'!$B$5:$F$33,4,FALSE) -> 30388 | R144: =VLOOKUP(N144,'STICKER LIST'!$B$5:$F$33,5,FALSE) -> 30389 | S144: Filter maintenance
A147: 【PO】
A149: MODEL | B149: NAME PLATE ATTACHING DRAWING | D149: CONVENTIONAL | N149: NEW | S149: REFERENCE
A150: - | B150: 752308 | E150: Japanese | H150: English | K150: Chinese | P150: CORD(MJ)
D151: NAME | E151: NUMBER | F151: DRAWING NUMBER(MJ) | G151: CORD(MJ) | H151: NUMBER | I151: DRAWING NUMBER(MJ) | J151: CORD(MJ) | K151: NUMBER | L151: DRAWING NUMBER(MJ) | M151: CORD(MJ) | N151: NUMBER | O151: DRAWING NUMBER(MJ) | P151: Japanese | Q151: English | R151: Chinese
D152: ELECTRIC SHOCK HAZARD | E152: 3-32 | F152: 731305/1 | G152: 14592 | H152: ← | K152: ← | N152: Z-019-ZZ | O152: =VLOOKUP(N152,'STICKER LIST'!$B$5:$F$33,2,FALSE) -> F39248 | P152: =VLOOKUP(N152,'STICKER LIST'!$B$5:$F$33,3,FALSE) -> 29767 | Q152: =VLOOKUP(N152,'STICKER LIST'!$B$5:$F$33,4,FALSE) -> ← | R152: =VLOOKUP(N152,'STICKER LIST'!$B$5:$F$33,5,FALSE) -> ←
D153: HOT SURFACE | E153: 5-11 | F153: 736246/1 | G153: 14577 | H153: 5-61 | I153: 737033/1 | J153: 14599 | K153: 5-111 | L153: 748586 | M153: 15079 | N153: W-021-□□ | O153: =VLOOKUP(N153,'STICKER LIST'!$B$5:$F$33,2,FALSE) -> F39192 | P153: =VLOOKUP(N153,'STICKER LIST'!$B$5:$F$33,3,FALSE) -> 29768 | Q153: =VLOOKUP(N153,'STICKER LIST'!$B$5:$F$33,4,FALSE) -> 29769 | R153: =VLOOKUP(N153,'STICKER LIST'!$B$5:$F$33,5,FALSE) -> 29770
D154: DO NOT USE FLAMMABLE MATERIAL | E154: 5-43 | F154: 794174 | G154: 19412 | H154: 5-93 | I154: 797084 | J154: 28663 | K154: - | L154: - | M154: - | N154: W-111-□□ | O154: =VLOOKUP(N154,'STICKER LIST'!$B$5:$F$33,2,FALSE) -> F39262 | P154: =VLOOKUP(N154,'STICKER LIST'!$B$5:$F$33,3,FALSE) -> 29804 | Q154: =VLOOKUP(N154,'STICKER LIST'!$B$5:$F$33,4,FALSE) -> 29805 | R154: =VLOOKUP(N154,'STICKER LIST'!$B$5:$F$33,5,FALSE) -> 29806
D155: DRYING EQUIPMENT | E155: 5-25 | F155: 736245/1 | G155: 14581 | H155: - | I155: - | J155: - | K155: - | L155: - | M155: - | N155: DELETE | S155: Used for 200H and 200SH in Japan. Write details in the instruction manual.
A158: 【JL4】
A160: MODEL | B160: NAME PLATE ATTACHING DRAWING | D160: CONVENTIONAL | N160: NEW | S160: REFERENCE
A161: - | B161: 190596 | E161: Japanese | H161: English | K161: Chinese | P161: CORD(MJ)
D162: NAME | E162: NUMBER | F162: DRAWING NUMBER(MJ) | G162: CORD(MJ) | H162: NUMBER | I162: DRAWING NUMBER(MJ) | J162: CORD(MJ) | K162: NUMBER | L162: DRAWING NUMBER(MJ) | M162: CORD(MJ) | N162: NUMBER | O162: DRAWING NUMBER(MJ) | P162: Japanese | Q162: English | R162: Chinese
D163: ELECTRIC SHOCK HAZARD | E163: 3-32 | F163: 731305/1 | G163: 14592 | H163: ← | K163: ← | N163: Z-019-ZZ | O163: =VLOOKUP(N163,'STICKER LIST'!$B$5:$F$33,2,FALSE) -> F39248 | P163: =VLOOKUP(N163,'STICKER LIST'!$B$5:$F$33,3,FALSE) -> 29767 | Q163: =VLOOKUP(N163,'STICKER LIST'!$B$5:$F$33,4,FALSE) -> ← | R163: =VLOOKUP(N163,'STICKER LIST'!$B$5:$F$33,5,FALSE) -> ←
D164: CAUTION Nameplate (MAINTENANCE, CAUTION) | E164: - | F164: 190597① | G164: - | H164: - | I164: A55026 | J164: - | K164: - | L164: D25835 | M164: - | N164: N-A06-□□ | O164: =VLOOKUP(N164,'STICKER LIST'!$B$5:$F$33,2,FALSE) -> F41736 | P164: =VLOOKUP(N164,'STICKER LIST'!$B$5:$F$33,3,FALSE) -> 30390 | Q164: =VLOOKUP(N164,'STICKER LIST'!$B$5:$F$33,4,FALSE) -> 30391 | R164: =VLOOKUP(N164,'STICKER LIST'!$B$5:$F$33,5,FALSE) -> 30392 | S164: Dust box maintenance
D165: CAUTION Nameplate (MAINTENANCE) | E165: - | F165: 190597② | G165: - | H165: - | I165: 190598 | J165: - | K165: - | L165: D25834 | M165: - | N165: N-A05-□□ | O165: =VLOOKUP(N165,'STICKER LIST'!$B$5:$F$33,2,FALSE) -> F41735 | P165: =VLOOKUP(N165,'STICKER LIST'!$B$5:$F$33,3,FALSE) -> 30387 | Q165: =VLOOKUP(N165,'STICKER LIST'!$B$5:$F$33,4,FALSE) -> 30388 | R165: =VLOOKUP(N165,'STICKER LIST'!$B$5:$F$33,5,FALSE) -> 30389 | S165: Filter maintenance
A168: 【PLP】
A170: MODEL | B170: NAME PLATE ATTACHING DRAWING | D170: CONVENTIONAL | N170: NEW | S170: REFERENCE
A171: PL-C1（Japanese） | B171: A54437 | E171: Japanese | H171: English | K171: Chinese | P171: CORD(MJ)
A172: PL-C1（English） | B172: A54438 | D172: NAME | E172: NUMBER | F172: DRAWING NUMBER(MJ) | G172: CORD(MJ) | H172: NUMBER | I172: DRAWING NUMBER(MJ) | J172: CORD(MJ) | K172: NUMBER | L172: DRAWING NUMBER(MJ) | M172: CORD(MJ) | N172: NUMBER | O172: DRAWING NUMBER(MJ) | P172: Japanese | Q172: English | R172: Chinese
A173: PL-C2 | B173: A54441 | D173: ELECTRIC SHOCK HAZARD | E173: 3-31 | F173: 731305/1 | G173: 14591 | H173: ← | K173: ← | N173: Z-019-ZZ | O173: =VLOOKUP(N173,'STICKER LIST'!$B$5:$F$33,2,FALSE) -> F39248 | P173: =VLOOKUP(N173,'STICKER LIST'!$B$5:$F$33,3,FALSE) -> 29767 | Q173: =VLOOKUP(N173,'STICKER LIST'!$B$5:$F$33,4,FALSE) -> ← | R173: =VLOOKUP(N173,'STICKER LIST'!$B$5:$F$33,5,FALSE) -> ← | S173: Used for PL-C1and PL-C2
A174: PL-C3 | B174: A54442 | D174: ELECTRIC SHOCK HAZARD | E174: 5-18-1 | F174: 736902/1 | G174: 22128 | H174: 5-68 | I174: 738372/1 | J174: 14611 | K174: 5-118 | L174: 748599/1 | M174: 15083 | N174: Z-019-ZZ | O174: =VLOOKUP(N174,'STICKER LIST'!$B$5:$F$33,2,FALSE) -> F39248 | P174: =VLOOKUP(N174,'STICKER LIST'!$B$5:$F$33,3,FALSE) -> 29767 | Q174: =VLOOKUP(N174,'STICKER LIST'!$B$5:$F$33,4,FALSE) -> ← | R174: =VLOOKUP(N174,'STICKER LIST'!$B$5:$F$33,5,FALSE) -> ← | S174: Used for PL-C3
A178: 【MC5-25/55/88】
A180: MODEL | B180: NAME PLATE ATTACHING DRAWING | D180: CONVENTIONAL | N180: NEW | S180: REFERENCE
A181: 25 | B181: D09747 | E181: Japanese | H181: English | K181: Chinese | P181: CORD(MJ)
A182: 55,88 | B182: D09748 | D182: NAME | E182: NUMBER | F182: DRAWING NUMBER(MJ) | G182: CORD(MJ) | H182: NUMBER | I182: DRAWING NUMBER(MJ) | J182: CORD(MJ) | K182: NUMBER | L182: DRAWING NUMBER(MJ) | M182: CORD(MJ) | N182: NUMBER | O182: DRAWING NUMBER(MJ) | P182: Japanese | Q182: English | R182: Chinese
D183: ELECTRIC SHOCK HAZARD | E183: 3-31 | F183: 731305/1 | G183: 14591 | H183: ← | K183: ← | N183: Z-019-ZZ | O183: =VLOOKUP(N183,'STICKER LIST'!$B$5:$F$33,2,FALSE) -> F39248 | P183: =VLOOKUP(N183,'STICKER LIST'!$B$5:$F$33,3,FALSE) -> 29767 | Q183: =VLOOKUP(N183,'STICKER LIST'!$B$5:$F$33,4,FALSE) -> ← | R183: =VLOOKUP(N183,'STICKER LIST'!$B$5:$F$33,5,FALSE) -> ← | S183: Used for G3
D184: ELECTRIC SHOCK HAZARD | E184: 5-19 | F184: D09718 | G184: 27398 | H184: 5-69 | I184: D09718 | J184: 27399 | K184: 5-119 | L184: D10460 | M184: 27404 | N184: Z-019-ZZ | O184: =VLOOKUP(N184,'STICKER LIST'!$B$5:$F$33,2,FALSE) -> F39248 | P184: =VLOOKUP(N184,'STICKER LIST'!$B$5:$F$33,3,FALSE) -> 29767 | Q184: =VLOOKUP(N184,'STICKER LIST'!$B$5:$F$33,4,FALSE) -> ← | R184: =VLOOKUP(N184,'STICKER LIST'!$B$5:$F$33,5,FALSE) -> ← | S184: Used for G1
D185: HOT SURFACE | E185: 5-33 | F185: D09719 | G185: 27393 | H185: 5-83 | I185: D09719 | J185: 27394 | K185: 5-133 | L185: D10461 | M185: 27395 | N185: Z-029-ZZ | O185: =VLOOKUP(N185,'STICKER LIST'!$B$5:$F$33,2,FALSE) -> F39249 | P185: =VLOOKUP(N185,'STICKER LIST'!$B$5:$F$33,3,FALSE) -> 29771 | Q185: =VLOOKUP(N185,'STICKER LIST'!$B$5:$F$33,4,FALSE) -> ← | R185: =VLOOKUP(N185,'STICKER LIST'!$B$5:$F$33,5,FALSE) -> ←
D186: HANDLING PRECAUTIONS | E186: 6-16 | F186: D09721 | G186: 27385 | H186: 6-66 | I186: D09721 | J186: 27386 | K186: 6-116 | L186: D10463/1 | M186: 27387 | N186: DELETE
D187: HANDLING PRECAUTIONS | E187: 7-10 | F187: D09720/1 | G187: 27388 | H187: 7-60 | I187: D09720/1 | J187: 27389 | K187: 7-110 | L187: D10462/3 | M187: 27390 | N187: N-A03-□□ | O187: =VLOOKUP(N187,'STICKER LIST'!$B$5:$F$33,2,FALSE) -> F39264 | P187: =VLOOKUP(N187,'STICKER LIST'!$B$5:$F$33,3,FALSE) -> 29813 | Q187: =VLOOKUP(N187,'STICKER LIST'!$B$5:$F$33,4,FALSE) -> 29814 | R187: =VLOOKUP(N187,'STICKER LIST'!$B$5:$F$33,5,FALSE) -> 29815
A190: 【MC-25/55/88】
A192: MODEL | B192: NAME PLATE ATTACHING DRAWING | D192: CONVENTIONAL | N192: NEW | S192: REFERENCE
A193: 25 | B193: A54860 | E193: Japanese | H193: English | K193: Chinese | P193: CORD(MJ)
A194: 55 | B194: A53978 | D194: NAME | E194: NUMBER | F194: DRAWING NUMBER(MJ) | G194: CORD(MJ) | H194: NUMBER | I194: DRAWING NUMBER(MJ) | J194: CORD(MJ) | K194: NUMBER | L194: DRAWING NUMBER(MJ) | M194: CORD(MJ) | N194: NUMBER | O194: DRAWING NUMBER(MJ) | P194: Japanese | Q194: English | R194: Chinese
A195: 88 | B195: A55202 | D195: ELECTRIC SHOCK HAZARD | E195: 5-16-1 | F195: 736249/1 | G195: 14578 | H195: 5-66 | I195: 737034 | J195: 14600 | K195: 5-116 | L195: 748601/1 | M195: 15081 | N195: Z-019-ZZ | O195: =VLOOKUP(N195,'STICKER LIST'!$B$5:$F$33,2,FALSE) -> F39248 | P195: =VLOOKUP(N195,'STICKER LIST'!$B$5:$F$33,3,FALSE) -> 29767 | Q195: =VLOOKUP(N195,'STICKER LIST'!$B$5:$F$33,4,FALSE) -> ← | R195: =VLOOKUP(N195,'STICKER LIST'!$B$5:$F$33,5,FALSE) -> ←
D196: HOT SURFACE | E196: 5-31-2 | F196: 736247/3 | G196: 14583 | H196: 5-81 | I196: 737038/2 | J196: 14604 | K196: 5-131 | L196: 748590 | M196: 15088 | N196: Z-029-ZZ | O196: =VLOOKUP(N196,'STICKER LIST'!$B$5:$F$33,2,FALSE) -> F39249 | P196: =VLOOKUP(N196,'STICKER LIST'!$B$5:$F$33,3,FALSE) -> 29771 | Q196: =VLOOKUP(N196,'STICKER LIST'!$B$5:$F$33,4,FALSE) -> ← | R196: =VLOOKUP(N196,'STICKER LIST'!$B$5:$F$33,5,FALSE) -> ←
D197: HANDLING PRECAUTIONS | E197: 6-15-2 | F197: 731297/3 | G197: 14586 | H197: 6-65-1 | I197: 737041/3 | J197: 14607 | K197: 6-115 | L197: 748593/1 | M197: 15091 | N197: DELETE
D198: HANDLING PRECAUTIONS | E198: 7-8 | F198: 142611/1 | G198: 20603 | H198: 7-58 | I198: 142629 | J198: 20604 | K198: 7-108 | L198: A80883 | M198: - | N198: N-A03-□□ | O198: =VLOOKUP(N198,'STICKER LIST'!$B$5:$F$33,2,FALSE) -> F39264 | P198: =VLOOKUP(N198,'STICKER LIST'!$B$5:$F$33,3,FALSE) -> 29813 | Q198: =VLOOKUP(N198,'STICKER LIST'!$B$5:$F$33,4,FALSE) -> 29814 | R198: =VLOOKUP(N198,'STICKER LIST'!$B$5:$F$33,5,FALSE) -> 29815
A201: 【MCHH-55/88】
A203: MODEL | B203: NAME PLATE ATTACHING DRAWING | D203: CONVENTIONAL | N203: NEW | S203: REFERENCE
A204: - | B204: B11630 | E204: Japanese | H204: English | K204: Chinese | P204: CORD(MJ)
D205: NAME | E205: NUMBER | F205: DRAWING NUMBER(MJ) | G205: CORD(MJ) | H205: NUMBER | I205: DRAWING NUMBER(MJ) | J205: CORD(MJ) | K205: NUMBER | L205: DRAWING NUMBER(MJ) | M205: CORD(MJ) | N205: NUMBER | O205: DRAWING NUMBER(MJ) | P205: Japanese | Q205: English | R205: Chinese
D206: ELECTRIC SHOCK HAZARD | E206: 5-16-1 | F206: 736249/1 | G206: 14578 | H206: 5-66 | I206: 737034 | J206: 14600 | K206: 5-116 | L206: 748601/1 | M206: 15081 | N206: Z-019-ZZ | O206: =VLOOKUP(N206,'STICKER LIST'!$B$5:$F$33,2,FALSE) -> F39248 | P206: =VLOOKUP(N206,'STICKER LIST'!$B$5:$F$33,3,FALSE) -> 29767 | Q206: =VLOOKUP(N206,'STICKER LIST'!$B$5:$F$33,4,FALSE) -> ← | R206: =VLOOKUP(N206,'STICKER LIST'!$B$5:$F$33,5,FALSE) -> ←
D207: HOT SURFACE | E207: 5-31-2 | F207: 736247/3 | G207: 14583 | H207: 5-81 | I207: 737038/2 | J207: 14604 | K207: 5-131 | L207: 748590 | M207: 15088 | N207: Z-029-ZZ | O207: =VLOOKUP(N207,'STICKER LIST'!$B$5:$F$33,2,FALSE) -> F39249 | P207: =VLOOKUP(N207,'STICKER LIST'!$B$5:$F$33,3,FALSE) -> 29771 | Q207: =VLOOKUP(N207,'STICKER LIST'!$B$5:$F$33,4,FALSE) -> ← | R207: =VLOOKUP(N207,'STICKER LIST'!$B$5:$F$33,5,FALSE) -> ←
D208: HANDLING PRECAUTIONS | E208: 6-15-2 | F208: 731297/3 | G208: 14586 | H208: 6-65-1 | I208: 737041/3 | J208: 14607 | K208: 6-115 | L208: 748593/1 | M208: 15091 | N208: DELETE
D209: HANDLING PRECAUTIONS | E209: 7-8 | F209: 142611/1 | G209: 20603 | H209: 7-58 | I209: 142629 | J209: 20604 | K209: 7-108 | L209: A80883 | M209: - | N209: N-A03-□□ | O209: =VLOOKUP(N209,'STICKER LIST'!$B$5:$F$33,2,FALSE) -> F39264 | P209: =VLOOKUP(N209,'STICKER LIST'!$B$5:$F$33,3,FALSE) -> 29813 | Q209: =VLOOKUP(N209,'STICKER LIST'!$B$5:$F$33,4,FALSE) -> 29814 | R209: =VLOOKUP(N209,'STICKER LIST'!$B$5:$F$33,5,FALSE) -> 29815
A212: 【MC5-55/88/100HH】
A214: MODEL | B214: NAME PLATE ATTACHING DRAWING | D214: CONVENTIONAL | N214: NEW | S214: REFERENCE
A215: 55 | B215: D32549 | E215: Japanese | H215: English | K215: Chinese | P215: CORD(MJ)
A216: 88 | B216: D32550 | D216: NAME | E216: NUMBER | F216: DRAWING NUMBER(MJ) | G216: CORD(MJ) | H216: NUMBER | I216: DRAWING NUMBER(MJ) | J216: CORD(MJ) | K216: NUMBER | L216: DRAWING NUMBER(MJ) | M216: CORD(MJ) | N216: NUMBER | O216: DRAWING NUMBER(MJ) | P216: Japanese | Q216: English | R216: Chinese
A217: 100 | B217: D32551 | D217: ELECTRIC SHOCK HAZARD | E217: 3-31 | F217: 731305/1 | G217: 14591 | H217: ← | K217: ← | N217: Z-019-ZZ | O217: =VLOOKUP(N217,'STICKER LIST'!$B$5:$F$33,2,FALSE) -> F39248 | P217: =VLOOKUP(N217,'STICKER LIST'!$B$5:$F$33,3,FALSE) -> 29767 | Q217: =VLOOKUP(N217,'STICKER LIST'!$B$5:$F$33,4,FALSE) -> ← | R217: =VLOOKUP(N217,'STICKER LIST'!$B$5:$F$33,5,FALSE) -> ← | S217: Used for G3
D218: ELECTRIC SHOCK HAZARD | E218: 5-19 | F218: D09718 | G218: 27398 | H218: 5-69 | I218: D09718 | J218: 27399 | K218: 5-119 | L218: D10460 | M218: 27404 | N218: Z-019-ZZ | O218: =VLOOKUP(N218,'STICKER LIST'!$B$5:$F$33,2,FALSE) -> F39248 | P218: =VLOOKUP(N218,'STICKER LIST'!$B$5:$F$33,3,FALSE) -> 29767 | Q218: =VLOOKUP(N218,'STICKER LIST'!$B$5:$F$33,4,FALSE) -> ← | R218: =VLOOKUP(N218,'STICKER LIST'!$B$5:$F$33,5,FALSE) -> ← | S218: Used for G1
D219: HOT SURFACE | E219: 5-33 | F219: D09719 | G219: 27393 | H219: 5-83 | I219: D09719 | J219: 27394 | K219: 5-133 | L219: D10461 | M219: 27395 | N219: Z-029-ZZ | O219: =VLOOKUP(N219,'STICKER LIST'!$B$5:$F$33,2,FALSE) -> F39249 | P219: =VLOOKUP(N219,'STICKER LIST'!$B$5:$F$33,3,FALSE) -> 29771 | Q219: =VLOOKUP(N219,'STICKER LIST'!$B$5:$F$33,4,FALSE) -> ← | R219: =VLOOKUP(N219,'STICKER LIST'!$B$5:$F$33,5,FALSE) -> ←
D220: HANDLING PRECAUTIONS | E220: 6-16 | F220: D09721 | G220: 27385 | H220: 6-66 | I220: D09721 | J220: 27386 | K220: 6-116 | L220: D10463/1 | M220: 27387 | N220: DELETE
D221: HANDLING PRECAUTIONS | E221: 7-10 | F221: D09720/1 | G221: 27388 | H221: 7-60 | I221: D09720/1 | J221: 27389 | K221: 7-110 | L221: D10462/3 | M221: 27390 | N221: N-A03-□□ | O221: =VLOOKUP(N221,'STICKER LIST'!$B$5:$F$33,2,FALSE) -> F39264 | P221: =VLOOKUP(N221,'STICKER LIST'!$B$5:$F$33,3,FALSE) -> 29813 | Q221: =VLOOKUP(N221,'STICKER LIST'!$B$5:$F$33,4,FALSE) -> 29814 | R221: =VLOOKUP(N221,'STICKER LIST'!$B$5:$F$33,5,FALSE) -> 29815
A224: 【MC-5】
A226: MODEL | B226: NAME PLATE ATTACHING DRAWING | D226: CONVENTIONAL | N226: NEW | S226: REFERENCE
A227: - | B227: A54573 | E227: Japanese | H227: English | K227: Chinese | P227: CORD(MJ)
D228: NAME | E228: NUMBER | F228: DRAWING NUMBER(MJ) | G228: CORD(MJ) | H228: NUMBER | I228: DRAWING NUMBER(MJ) | J228: CORD(MJ) | K228: NUMBER | L228: DRAWING NUMBER(MJ) | M228: CORD(MJ) | N228: NUMBER | O228: DRAWING NUMBER(MJ) | P228: Japanese | Q228: English | R228: Chinese
D229: ELECTRIC SHOCK HAZARD | E229: ‐ | F229: 731305 | G229: ‐ | H229: ‐ | I229: ‐ | J229: ‐ | K229: ‐ | L229: ‐ | M229: ‐ | N229: Z-019-ZZ | O229: F39248 | P229: 29767 | Q229: ← | R229: ←
D230: ELECTRIC SHOCK HAZARD | E230: 5-18-1 | F230: 736902/1 | G230: 22128 | H230: 5-68 | I230: 738372/1 | J230: 14611 | K230: 5-118 | L230: 748599/1 | M230: 15083 | N230: Z-019-ZZ | O230: =VLOOKUP(N230,'STICKER LIST'!$B$5:$F$33,2,FALSE) -> F39248 | P230: =VLOOKUP(N230,'STICKER LIST'!$B$5:$F$33,3,FALSE) -> 29767 | Q230: =VLOOKUP(N230,'STICKER LIST'!$B$5:$F$33,4,FALSE) -> ← | R230: =VLOOKUP(N230,'STICKER LIST'!$B$5:$F$33,5,FALSE) -> ←
D231: HOT SURFACE | E231: 5-31-2 | F231: 736247/3 | G231: 14583 | H231: 5-81 | I231: 737038/2 | J231: 14604 | K231: 5-131 | L231: 748590 | M231: 15088 | N231: Z-029-ZZ | O231: =VLOOKUP(N231,'STICKER LIST'!$B$5:$F$33,2,FALSE) -> F39249 | P231: =VLOOKUP(N231,'STICKER LIST'!$B$5:$F$33,3,FALSE) -> 29771 | Q231: =VLOOKUP(N231,'STICKER LIST'!$B$5:$F$33,4,FALSE) -> ← | R231: =VLOOKUP(N231,'STICKER LIST'!$B$5:$F$33,5,FALSE) -> ←
D232: HANDLING PRECAUTIONS | E232: 6-15-2 | F232: 731297/3 | G232: 14586 | H232: 6-65-1 | I232: 737041/3 | J232: 14607 | K232: 6-115 | L232: 748593/1 | M232: 15091 | N232: DELETE
D233: HANDLING PRECAUTIONS | E233: 7-8 | F233: 142611/1 | G233: 20603 | H233: 7-58 | I233: 142629 | J233: 20604 | K233: 7-108 | L233: A80883 | M233: - | N233: N-A03-□□ | O233: =VLOOKUP(N233,'STICKER LIST'!$B$5:$F$33,2,FALSE) -> F39264 | P233: =VLOOKUP(N233,'STICKER LIST'!$B$5:$F$33,3,FALSE) -> 29813 | Q233: =VLOOKUP(N233,'STICKER LIST'!$B$5:$F$33,4,FALSE) -> 29814 | R233: =VLOOKUP(N233,'STICKER LIST'!$B$5:$F$33,5,FALSE) -> 29815
A236: 【MCM】
A238: MODEL | B238: 全体図 | D238: CONVENTIONAL | N238: NEW | S238: REFERENCE
A239: - | B239: A21150 | E239: Japanese | H239: English | K239: Chinese | P239: CORD(MJ)
D240: NAME | E240: NUMBER | F240: DRAWING NUMBER(MJ) | G240: CORD(MJ) | H240: NUMBER | I240: DRAWING NUMBER(MJ) | J240: CORD(MJ) | K240: NUMBER | L240: DRAWING NUMBER(MJ) | M240: CORD(MJ) | N240: NUMBER | O240: DRAWING NUMBER(MJ) | P240: Japanese | Q240: English | R240: Chinese
D241: ELECTRIC SHOCK HAZARD | E241: 3-31 | F241: 731305/1 | G241: 14591 | H241: ← | K241: ← | N241: Z-019-ZZ | O241: =VLOOKUP(N241,'STICKER LIST'!$B$5:$F$33,2,FALSE) -> F39248 | P241: =VLOOKUP(N241,'STICKER LIST'!$B$5:$F$33,3,FALSE) -> 29767 | Q241: =VLOOKUP(N241,'STICKER LIST'!$B$5:$F$33,4,FALSE) -> ← | R241: =VLOOKUP(N241,'STICKER LIST'!$B$5:$F$33,5,FALSE) -> ←
D242: ELECTRIC SHOCK HAZARD | E242: 5-18-1 | F242: 736902/1 | G242: 22128 | H242: 5-68 | I242: 738372/1 | J242: 14611 | K242: 5-118 | L242: 748599/1 | M242: 15083 | N242: Z-019-ZZ | O242: =VLOOKUP(N242,'STICKER LIST'!$B$5:$F$33,2,FALSE) -> F39248 | P242: =VLOOKUP(N242,'STICKER LIST'!$B$5:$F$33,3,FALSE) -> 29767 | Q242: =VLOOKUP(N242,'STICKER LIST'!$B$5:$F$33,4,FALSE) -> ← | R242: =VLOOKUP(N242,'STICKER LIST'!$B$5:$F$33,5,FALSE) -> ←
D243: HOT SURFACE | E243: 5-11 | F243: 736246/1 | G243: 14577 | H243: 5-61 | I243: 737033/1 | J243: 14599 | K243: 5-111 | L243: 748586 | M243: 15079 | N243: W-021-□□ | O243: =VLOOKUP(N243,'STICKER LIST'!$B$5:$F$33,2,FALSE) -> F39192 | P243: =VLOOKUP(N243,'STICKER LIST'!$B$5:$F$33,3,FALSE) -> 29768 | Q243: =VLOOKUP(N243,'STICKER LIST'!$B$5:$F$33,4,FALSE) -> 29769 | R243: =VLOOKUP(N243,'STICKER LIST'!$B$5:$F$33,5,FALSE) -> 29770
D244: HOT SURFACE | E244: 5-31-2 | F244: 736247/3 | G244: 14583 | H244: 5-81 | I244: 737038/2 | J244: 14604 | K244: 5-131 | L244: 748590 | M244: 15088 | N244: W-021-□□ | O244: =VLOOKUP(N244,'STICKER LIST'!$B$5:$F$33,2,FALSE) -> F39192 | P244: =VLOOKUP(N244,'STICKER LIST'!$B$5:$F$33,3,FALSE) -> 29768 | Q244: =VLOOKUP(N244,'STICKER LIST'!$B$5:$F$33,4,FALSE) -> 29769 | R244: =VLOOKUP(N244,'STICKER LIST'!$B$5:$F$33,5,FALSE) -> 29770
D245: HOT SURFACE | E245: 5-32-1 | F245: 736248/2 | G245: 14584 | H245: 5-82 | I245: 737039/2 | J245: 14605 | K245: 5-132 | L245: 748591 | M245: 15089 | N245: W-021-□□ | O245: =VLOOKUP(N245,'STICKER LIST'!$B$5:$F$33,2,FALSE) -> F39192 | P245: =VLOOKUP(N245,'STICKER LIST'!$B$5:$F$33,3,FALSE) -> 29768 | Q245: =VLOOKUP(N245,'STICKER LIST'!$B$5:$F$33,4,FALSE) -> 29769 | R245: =VLOOKUP(N245,'STICKER LIST'!$B$5:$F$33,5,FALSE) -> 29770
D246: HANDLING PRECAUTIONS | E246: 6-15-2 | F246: 731297/3 | G246: 14586 | H246: 6-65-1 | I246: 737041/3 | J246: 14607 | K246: 6-115 | L246: 748593/1 | M246: 15091 | N246: DELETE
D247: HANDLING PRECAUTIONS | E247: 7-8 | F247: 142611/1 | G247: 20603 | H247: 7-58 | I247: 142629 | J247: 20604 | K247: 7-108 | L247: A80883 | M247: - | N247: N-A03-□□ | O247: =VLOOKUP(N247,'STICKER LIST'!$B$5:$F$33,2,FALSE) -> F39264 | P247: =VLOOKUP(N247,'STICKER LIST'!$B$5:$F$33,3,FALSE) -> 29813 | Q247: =VLOOKUP(N247,'STICKER LIST'!$B$5:$F$33,4,FALSE) -> 29814 | R247: =VLOOKUP(N247,'STICKER LIST'!$B$5:$F$33,5,FALSE) -> 29815 | S247: It is stated in the material request form and needs to be added to the name plate attaching drawing.
A250: 【MIC】
A252: MODEL | B252: NAME PLATE ATTACHING DRAWING | D252: CONVENTIONAL | N252: NEW | S252: REFERENCE
A253: - | B253: A89116 | E253: Japanese | H253: English | K253: Chinese | P253: CORD(MJ)
D254: NAME | E254: NUMBER | F254: DRAWING NUMBER(MJ) | G254: CORD(MJ) | H254: NUMBER | I254: DRAWING NUMBER(MJ) | J254: CORD(MJ) | K254: NUMBER | L254: DRAWING NUMBER(MJ) | M254: CORD(MJ) | N254: NUMBER | O254: DRAWING NUMBER(MJ) | P254: Japanese | Q254: English | R254: Chinese
D255: ELECTRIC SHOCK HAZARD | E255: 3-31 | F255: 731305/1 | G255: 14591 | H255: ← | K255: ← | N255: Z-019-ZZ | O255: =VLOOKUP(N255,'STICKER LIST'!$B$5:$F$33,2,FALSE) -> F39248 | P255: =VLOOKUP(N255,'STICKER LIST'!$B$5:$F$33,3,FALSE) -> 29767 | Q255: =VLOOKUP(N255,'STICKER LIST'!$B$5:$F$33,4,FALSE) -> ← | R255: =VLOOKUP(N255,'STICKER LIST'!$B$5:$F$33,5,FALSE) -> ←
D256: ELECTRIC SHOCK HAZARD | E256: 5-18-1 | F256: 736902/1 | G256: 22128 | H256: 5-68 | I256: 738372/1 | J256: 14611 | K256: 5-118 | L256: 748599/1 | M256: 15083 | N256: Z-019-ZZ | O256: =VLOOKUP(N256,'STICKER LIST'!$B$5:$F$33,2,FALSE) -> F39248 | P256: =VLOOKUP(N256,'STICKER LIST'!$B$5:$F$33,3,FALSE) -> 29767 | Q256: =VLOOKUP(N256,'STICKER LIST'!$B$5:$F$33,4,FALSE) -> ← | R256: =VLOOKUP(N256,'STICKER LIST'!$B$5:$F$33,5,FALSE) -> ←
D257: ROTATING PARTS | E257: 5-22-1 | F257: 731302/1 | G257: 14580 | H257: 5-72 | I257: 737036/1 | J257: 14602 | K257: 5-122 | L257: 748588/1 | M257: 15085 | N257: W-031-□□ | O257: =VLOOKUP(N257,'STICKER LIST'!$B$5:$F$33,2,FALSE) -> F39250 | P257: =VLOOKUP(N257,'STICKER LIST'!$B$5:$F$33,3,FALSE) -> 29772 | Q257: =VLOOKUP(N257,'STICKER LIST'!$B$5:$F$33,4,FALSE) -> 29773 | R257: =VLOOKUP(N257,'STICKER LIST'!$B$5:$F$33,5,FALSE) -> 29774
D258: HANDLING PRECAUTIONS | E258: 6-15-2 | F258: 731297/3 | G258: 14586 | H258: 6-65-1 | I258: 737041/3 | J258: 14607 | K258: 6-115 | L258: 748593/1 | M258: 15091 | N258: DELETE
A261: 【MC5-200/350/450】
A263: MODEL | B263: NAME PLATE ATTACHING DRAWING | D263: CONVENTIONAL | N263: NEW | S263: REFERENCE
A264: - | B264: D24374 | E264: Japanese | H264: English | K264: Chinese | P264: CORD(MJ)
D265: NAME | E265: NUMBER | F265: DRAWING NUMBER(MJ) | G265: CORD(MJ) | H265: NUMBER | I265: DRAWING NUMBER(MJ) | J265: CORD(MJ) | K265: NUMBER | L265: DRAWING NUMBER(MJ) | M265: CORD(MJ) | N265: NUMBER | O265: DRAWING NUMBER(MJ) | P265: Japanese | Q265: English | R265: Chinese
D266: ELECTRIC SHOCK HAZARD | E266: 3-31 | F266: 731305/1 | G266: 14591 | H266: ← | K266: ← | N266: Z-019-ZZ | O266: =VLOOKUP(N266,'STICKER LIST'!$B$5:$F$33,2,FALSE) -> F39248 | P266: =VLOOKUP(N266,'STICKER LIST'!$B$5:$F$33,3,FALSE) -> 29767 | Q266: =VLOOKUP(N266,'STICKER LIST'!$B$5:$F$33,4,FALSE) -> ← | R266: =VLOOKUP(N266,'STICKER LIST'!$B$5:$F$33,5,FALSE) -> ←
... 209 more rows

Sheet NOTES
A1: NOTES
A3: 1. The position of the PL sticker is shown on the nameplate attaching drawing (common drawing of mechanical and electrical).
A4: If you can not draw common nameplate attaching drawing of mechanical and electrical, you draw it separately.
A5: 2. You delete PL sticker written in existing drawing other than nameplate attaching drawing and revise parts list.
A6: However if drawing have only symbol of "ELECTRIC SHOCK HAZARD" and no drawing number or sticker number, you need not revise it.
B9: Example:HD2 drawing(you need revise) | J9: Example:DMZ2 control panel drawing(you need revise) | O9: Example:MGD control panel drawing(you don't need revise)
A29: 3. Use the form below (example: MJ5-i) for the parts list of the nameplate attaching drawing.
A30: You write sticker number and drawing number referring to the example below.
A31: However, if the existing nameplate attaching drawing has a different form, refer to item 4 and revise it.
B33: Example:MJ5-i
J34: JAPANESE | L34: ENGLISH | N34: CHINESE
J35: REGISTRATION NO. | K35: DWG NO. | L35: REGISTRATION NO. | M35: DWG NO. | N35: REGISTRATION NO. | O35: DWG NO.
J36: W-021-JA | K36: F39192 | L36: W-021-EN | M36: F39192 | N36: W-021-ZH | O36: F39192 | P36: ⇐ With message
J37: Z-029-ZZ | K37: F39249 | L37: ← | P37: ⇐ Without message(Only symbol mark)
A46: 4. If the existing nameplate attaching drawing is not use the form above (item 3), please write the sticker number and note by referring to the example below.
A47: The position of the note does not matter.
B49: Example:HD2
J50: REFERENCE
J51: W-021-□□ | K51: ⇐ With message
J52: Z-029-ZZ | K52: ⇐ Without message(Only symbol mark)
J54: NOTE:In place of the square is the language code.
A61: 5. After revising the drawing, please update revision number. (you don't have to get new drawing number)
A62: You write the following in the revision column (CONTENTS).
A64: CORRECTION BY UPDATING PL STICKER
A67: 6. If the existing instruction manual have the description of PL sticker, you need revise it.
A68: At this time, not only replace the image of the PL sticker, but also check the content of the instruction manual match the message on the PL sticker, and revise it as appropriate.

Sheet MODEL LIST
A1: MODEL LIST
A3: MODEL | B3: COMPANY
A4: HD2 | B4: SDI
A5: HD | B5: SDI
A6: PMD | B6: SDI
A7: MGD | B7: SBC
A8: MJ3 | B8: SBC
A9: MJ5-i | B9: SBC
A10: DMZ2 | B10: SBC
A11: NTD | B11: SBC
A12: DMD4 | B12: SDI
A13: DPD3.1 | B13: SDI
A14: PO | B14: SBC
A15: JL4 | B15: SBC
A16: PLP | B16: SDI
A17: MC5-25/55/88 | B17: SBC
A18: MC-25/55/88 | B18: SDI
A19: MCHH-55/88 | B19: SDI
A20: MC5-55/88/100HH | B20: SBC
A21: MC-5 | B21: SBC
A22: MCM | B22: SDI
A23: MIC | B23: SBC
A24: MC5-200/350/450 | B24: SBC
A25: MCLX/HX | B25: SBC
A26: MCAX | B26: SDI
A27: MCC5 | B27: SDI
A28: MCC5-i | B28: SDI
A29: MCCA3 | B29: SDI
A30: RAD/M | B30: SDI
A31: MCX | B31: SBC
A32: T | B32: SBC
A33: JCGB | B33: SBC
A34: JC3 | B34: SDI
A35: JCLW | B35: SDI
A36: JCW2-i | B36: SDI
A37: JCW2 | B37: SDI
A38: JCT | B38: SDI
A39: JSV | B39: SBC
A40: SMGL3 | B40: SBC
A41: SMGL | B41: SBC
A42: MGL2 | B42: SBC
A43: MSHT-i-800 | B43: SDI
A44: MSHT-i-600 | B44: SDI
A45: PD | B45: SBC
A46: Rotary valve(Lid for weighing check) | B46: SDI
A47: Slide gate | B47: SDI
